Cogmind - Beta 16 @@@ ROGUE MODE // 2025.11.25 @ 18:28:38 Player: Swagumen Result: Destroyed by 3D-S5Z(l) with Ripper Performance ------------- Evolutions (4) 2000 Regions Visited (7) 1400 Robots Destroyed (51) 255 Value Destroyed (2582) 2582 Prototype IDs (10) 200 Alien Tech Used (0) 0 Bonus (1705) 1705 TOTAL SCORE: 8142 Bonus ------- High Alert Combat Kills 205 Entered Garrisons 200 Used RIF Installer 500 Registered with UFD 300 Met Optimus in HQ 500 Cogmind --------- Core Integrity 0/850 Matter 280/300 Energy 160/160 System Corruption 0% Temperature Cool (0) Movement Core (200) Ox3 Location -6/Lower Caves Parts ------- > --- POWER (2) -------- Light Nuclear Core > --- PROPULSION (4) --- (None) > --- UTILITY (5) ------ Advanced Heat Sink > --- WEAPON (4) ------- Overtuned Quantum Rifle > --- INVENTORY (5) ---- Armor Integrity Analyzer Armor Integrity Analyzer Recoil Stabilizer Phase Shifter Peak State ------------ > --- POWER ------------ Light Angular Momentum Engine Light Antimatter Reactor > --- PROPULSION ------- Spiked Treads Medium Treads Medium Treads Overtuned Medium Treads > --- UTILITY ---------- Scrap Suit High-capacity Storage Unit Makeshift Salvage Targeting Computer Improved Medium Armor Plating > --- WEAPON ----------- Heavy Laser Heavy Laser Gauss Rifle Flak Gun > --- INVENTORY -------- Light Nuclear Core Reinforced Deuterium Engine Scrap Suit Advanced Heat Sink Advanced Heat Sink Matter Compressor Triangulator Armor Integrity Analyzer Armor Integrity Analyzer Recoil Stabilizer Phase Shifter Hardlight Generator Relay Coupler [NC] Relay Coupler [NC] Overtuned Pulse Rifle Overtuned Beamcaster Overtuned Beamcaster Overtuned Quantum Rifle Mace [Rating: 69] Favorites ----------- Power Light Nuclear Core Engine Light Angular Momentum Engine Power Core Light Nuclear Core Reactor Light Antimatter Reactor Propulsion Medium Treads Treads Medium Treads Wheel Wheel Utility High-capacity Storage Unit Device Scrap Suit Storage High-capacity Storage Unit Processor Makeshift Salvage Targeting Computer Protection Improved Medium Armor Plating Weapon Assault Rifle Energy Gun Heavy Laser Ballistic Gun Assault Rifle Launcher Subdweller Shrapnel Launcher Slashing Weapon Segregator Build | -11 -10 -10 -9 -6 -6 -6 -6 ------- Run | Yrd Mat Sub Scr Fac Gar Fac Low Slots Evolved 8 | . . . . 8 . . . Power 1 | . . . . 1 . . . Propulsion 2 | . . . . 2 . . . Utility 3 | . . . . 3 . . . Weapon 2 | . . . . 2 . . . Parts Attached 53 | 8 1 4 8 11 12 8 1 Power 11 | 1 . 1 1 1 6 1 . Engine 5 | 1 . 1 . . 3 . . Core 5 | . . . 1 1 2 1 . Reactor 1 | . . . . . 1 . . Propulsion 12 | 2 . 1 2 3 3 1 . Treads 11 | 2 . 1 2 3 3 . . Leg . | . . . . . . . . Wheel 1 | . . . . . . 1 . Hover . | . . . . . . . . Flight . | . . . . . . . . Utility 17 | 2 1 . 4 3 3 4 . Device 8 | 1 . . 1 2 1 3 . Storage 4 | 1 1 . 1 . . 1 . Processor 1 | . . . . 1 . . . Hackware . | . . . . . . . . Protection 4 | . . . 2 . 2 . . Artifact . | . . . . . . . . Weapon 13 | 3 . 2 1 4 . 2 1 Energy Gun 7 | 1 . . . 4 . 2 . Energy Cannon . | . . . . . . . . Ballistic Gun 2 | 2 . . . . . . . Ballistic Cannon . | . . . . . . . . Launcher 3 | . . 2 1 . . . . Special Weapon . | . . . . . . . . Impact Weapon . | . . . . . . . . Slashing Weapon 1 | . . . . . . . 1 Piercing Weapon . | . . . . . . . . Special Melee Weapon . | . . . . . . . . Unidentified Prototypes . | . . . . . . . . Parts Lost 28 | . 1 1 . . 9 6 11 Power 7 | . . 1 . . 3 1 2 Propulsion 7 | . . . . . 4 2 1 Utility 5 | . 1 . . . . 2 2 Weapon 9 | . . . . . 2 1 6 Highest Loss Streak 8 | . 1 1 . . 3 5 8 To Critical Strikes . | . . . . . . . . Average Backups 13 | 1 7 9 11 10 18 18 16 Power 1 | . 1 2 1 . 1 1 1 Propulsion . | . 2 1 1 . . . . Utility 7 | . 2 3 5 7 11 13 11 Weapon 3 | . 1 2 3 2 4 3 2 Tool/Special . | . . . . . . . . Unused Backups 16 | . . 2 2 . 2 . 10 Power 2 | . . . 1 . . . 1 Propulsion 2 | . . 2 . . . . . Utility 10 | . . . . . 1 . 9 Weapon 2 | . . . 1 . 1 . . Tool/Special . | . . . . . . . . Average Slot Usage (%) 87 | . 94 82 93 90 88 80 68 Engine 4 | . 14 11 . . 5 6 5 Core 7 | . . . 13 13 2 1 5 Reactor 1 | . . . . . 4 4 . Treads 22 | . 28 28 28 25 23 12 1 Device 5 | . 8 . . 12 7 9 19 Storage 10 | . 14 14 14 6 6 6 5 Processor 2 | . . . . 5 6 4 . Protection 5 | . . . 8 . 4 4 . Energy Gun 6 | . . . . 16 12 11 17 Ballistic Gun 19 | . 28 25 28 8 12 10 4 Peak Build Rating 69 | 7 8 9 22 63 69 58 57 Average Rating 35 | 5 7 8 15 54 64 55 49 On Entrance 27 | . 7 7 9 17 63 58 55 Avg Prop Armor Cover (%) 7 | . . . 7 . . 7 7 Naked Turns . | . . . . . . . . Heaviest Build 89 | 13 18 20 56 76 89 89 89 Greatest Support 101 | 40 40 40 45 101 101 68 10 Greatest Overweight (x) 23 | . . . 2 . 2 8 23 Average Overweight (x) 1 | . . . . . . 2 7 Largest Inventory Capacity 20 | 8 10 10 20 20 20 20 20 Average Capacity 17 | 7 9 10 16 20 20 20 19 Most Carried 20 | 4 9 10 18 17 20 20 17 Average Carried 14 | 2 7 9 12 11 19 18 16 Final Capacity 20 | 8 10 10 20 20 20 20 5 Final Carried 19 | 4 9 9 18 16 19 17 4 Scrap Suit Usage (%) 46 | . . . . 98 100 86 96 Parts Cannibalized 31 | . . . . . 26 4 1 Class Distribution -------------------- 52% | Mutant 39% | Scavenger-Tank 5% | Scrapper Dominant Class ---------------- Mutant | -10/Materials Mutant | -10/Subcaves Mutant | -9/Scraptown Scrapper | -6/Factory Scavenger-Tank | -6/Garrison Scavenger-Tank | -6/Factory Scavenger-Tank | -6/Lower Caves Resources | -11 -10 -10 -9 -6 -6 -6 -6 ----------- Run | Yrd Mat Sub Scr Fac Gar Fac Low Matter Collected 2053 | 186 228 58 205 80 892 299 105 Remotely . | . . . . . . . . Salvage Created 2872 | 101 264 123 . . 1590 387 407 Parts 134 | 11 13 6 . . 78 19 7 Haulers Intercepted . | . . . . . . . . Recyclers Shooed 3 | 1 1 . . . . 1 . Parts Field Recycled . | . . . . . . . . Retrieved Matter . | . . . . . . . . Parts Self-Destructed 11 | . . 4 . . . . 7 Prevented . | . . . . . . . . Parts Restored . | . . . . . . . . Kills | -11 -10 -10 -9 -6 -6 -6 -6 ------- Run | Yrd Mat Sub Scr Fac Gar Fac Low Combat Hostiles Destroyed 45 | . 4 4 . . 24 6 7 Guns 42 | . 4 1 . . 24 6 7 AOE 3 | . . 3 . . . . . Classes Destroyed 13 | 2 1 1 . . 6 2 1 Worker 1 | . . . . . . 1 . Tunneler 2 | 2 . . . . . . . Recycler 2 | 1 1 . . . . . . Watcher 1 | . . . . . . 1 . Swarmer 6 | . . . . . 6 . . Saboteur 1 | . . . . . 1 . . Grunt 21 | . 4 . . . 12 1 4 Brawler 1 | . . . . . 1 . . Sentry 2 | . . . . . 1 1 . Hunter 4 | . . . . . 2 2 . Programmer 3 | . . . . . 1 2 . Subdweller 4 | . . 4 . . . . . Thug 1 | . . . . . . . 1 Butcher 2 | . . . . . . . 2 Best Kill Streak 4 | 3 3 3 . . 4 2 2 Combat Bots Only 4 | . 2 3 . . 4 2 2 Max Kills in Single Turn 2 | 1 1 2 . . 2 1 1 Gunslinging 1 | . . . . . 1 . . Exploded 2 | . . 2 . . . . . Melee . | . . . . . . . . Uniques/NPCs Destroyed . | . . . . . . . . Combat | -11 -10 -10 -9 -6 -6 -6 -6 -------- Run | Yrd Mat Sub Scr Fac Gar Fac Low Hostile Shots Fired 453 | . 21 17 2 . 258 87 68 Missed 125 | . 4 5 . . 73 27 16 Hits 328 | . 17 12 2 . 185 60 52 Melee 38 | . . . . . 3 . 35 Projectile 290 | . 17 12 2 . 182 60 17 Critical Strikes 19 | . . . . . 4 . 15 Damage Taken 5656 | . 207 341 40 . 2821 701 1546 Core 973 | . 34 57 22 . 307 106 447 Absorbed by Shields 92 | . . . . . . 24 68 Regen/Repaired (Parts) 625 | . . . 350 . 243 22 10 Core Remaining (%) 77 | 100 . . 54 . . . . Volleys Fired 173 | 5 17 8 . . 94 26 23 Largest 4 | 2 2 2 . . 4 4 4 Hottest 326 | 60 40 60 . . 326 216 313 Shots Fired 410 | 10 34 15 . . 241 61 49 Gun 406 | 10 34 11 . . 241 61 49 Cannon . | . . . . . . . . Launcher 4 | . . 4 . . . . . Special . | . . . . . . . . Kinetic 270 | 9 34 14 . . 168 40 5 Thermal 138 | . . . . . 73 21 44 Explosive 1 | . . 1 . . . . . Electromagnetic 1 | 1 . . . . . . . Robot Hit Streak 21 | 3 7 4 . . 21 8 8 Robot Miss Streak 9 | 1 2 1 . . 9 6 3 Penetration Max 1 | . . . . . 1 1 . Secondary Targets 8 | . . . . . 7 1 . Max Gunslinging Chain 1 | . . . . . 1 1 . Shots Hit Robots 288 | 6 24 6 . . 163 49 40 Core Hits 167 | 4 11 7 . . 91 29 25 Critical Kills 1 | . . 1 . . . . . Critical Parts Destroyed 1 | . . . . . . 1 . Critical Strikes 6 | . . 1 . . 2 2 1 Burn 4 | . . . . . 2 1 1 Destroy 2 | . . 1 . . . 1 . Melee Attacks 12 | . . . . . . 3 9 Thermal 12 | . . . . . . 3 9 Impact . | . . . . . . . . Slashing . | . . . . . . . . Piercing . | . . . . . . . . Sneak Attacks . | . . . . . . . . Combat Hostiles . | . . . . . . . . Follow-up Attacks . | . . . . . . . . Damage Inflicted 6195 | 84 300 426 . . 3201 1152 1032 Guns 5794 | 84 300 62 . . 3201 1115 1032 Cannons . | . . . . . . . . Explosions 364 | . . 364 . . . . . Melee . | . . . . . . . . Ramming 37 | . . . . . . 37 . Kinetic 3942 | 84 300 426 . . 2358 689 85 Thermal 2216 | . . . . . 843 426 947 Explosive . | . . . . . . . . Electromagnetic . | . . . . . . . . Impact . | . . . . . . . . Slashing . | . . . . . . . . Piercing . | . . . . . . . . Highest Corruption . | . . . . . . . . Average Corruption . | . . . . . . . . Corruption Purged . | . . . . . . . . Corruption Blocked . | . . . . . . . . Overload Shots . | . . . . . . . . Overflow Damage . | . . . . . . . . Projectiles . | . . . . . . . . Explosions . | . . . . . . . . Melee . | . . . . . . . . Knockbacks 1 | . . . . . . 1 . Impact 1 | . . . . . . 1 . Kinetic . | . . . . . . . . Secondary . | . . . . . . . . Self-Inflicted Damage 74 | . . 62 . . . 12 . Shots 3 | . . 3 . . . . . Rammed 1 | . . . . . . 1 . Targets Rammed 2 | . . . . . . 2 . Kicked . | . . . . . . . . Crushed 1 | . . . . . . 1 . Highest Temperature 564 | . 5 . . . 564 530 488 Average Temperature 160 | . 3 . . . 161 152 178 Received Heat Transfer 1248 | . 114 54 24 . 885 45 126 Effects 39 | . . . . . 23 11 5 Shutdowns 14 | . . . . . 8 3 3 Energy Bleed 4 | . . . . . 4 . . Interference 14 | . . . . . 5 8 1 Matter Decay 3 | . . . . . 2 . 1 Damage (minor) 3 | . . . . . 3 . . Damage (core) 1 | . . . . . 1 . . Siege Activations . | . . . . . . . . Martial Activations . | . . . . . . . . Shielding Activations . | . . . . . . . . Robots Disrupted . | . . . . . . . . Combat Hostiles . | . . . . . . . . Robots Corrupted . | . . . . . . . . Combat Hostiles . | . . . . . . . . Parts Fried . | . . . . . . . . Impact Corruptions . | . . . . . . . . Robots Melted . | . . . . . . . . Combat Hostiles . | . . . . . . . . Parts Melted 13 | . . . . . 7 4 2 Heat Transferred 4605 | . . . . . 1830 975 1800 Parts Sabotaged 4 | . . . . . 4 . . Parts Stolen . | . . . . . . . . Parts Stripped . | . . . . . . . . Power Chain Reactions . | . . . . . . . . Alert | -11 -10 -10 -9 -6 -6 -6 -6 ------- Run | Yrd Mat Sub Scr Fac Gar Fac Low Maximum Alert Level 4 | . . . . . 4 2 . Low Security (%) 28 | 100 100 . . 100 15 . . Level 1 11 | . . . . . 18 . . Level 2 39 | . . . . . 32 100 . Level 3 16 | . . . . . 27 . . Level 4 3 | . . . . . 6 . . Level 5 . | . . . . . . . . High Security . | . . . . . . . . Max Security . | . . . . . . . . Peak Influence 1295 | 10 56 . . 14 1295 679 . Initial 679 | . . . . . 9 679 . Average 458 | 2 9 . . . 574 556 . Influence Increases 1856 | 15 98 . . 14 1376 248 105 Destroy 0b10 Robot/C 760 | . 80 . . . 480 120 80 Destroy 0b10 Robot/NC 40 | 15 5 . . . 10 10 . Destroy Leader 112 | . 10 . . . 40 52 10 Successful Hack 21 | . 2 . . 14 . 5 . Disable Machine 15 | . . . . . . 15 . Anti-Garrison Action 800 | . . . . . 800 . . Destroy Structure 33 | . 1 . . . 31 1 . Lose Combat Pursuer 75 | . . . . . 15 45 15 Influence Decreases 1856 | 15 98 . . . 95 1068 580 Entered New Map 798 | . . . . . 5 616 177 Time Decay 868 | 15 88 . . . . 392 373 Lost Part 190 | . 10 . . . 90 60 30 Squads Dispatched 4 | . . . . . . 4 . Investigation 2 | . . . . . . 2 . Extermination 1 | . . . . . . 1 . Reinforcement . | . . . . . . . . Assault 1 | . . . . . . 1 . Garrison . | . . . . . . . . Intercept . | . . . . . . . . Searches Triggered . | . . . . . . . . Construction Impeded . | . . . . . . . . Haulers Reinforced . | . . . . . . . . Active Scanning Responses . | . . . . . . . . Cargo Convoy Interrupts . | . . . . . . . . Stealth | -11 -10 -10 -9 -6 -6 -6 -6 --------- Run | Yrd Mat Sub Scr Fac Gar Fac Low Distress Signals 2 | . 1 . . . . 1 . Communications Jammed . | . . . . . . . . Distress Signals . | . . . . . . . . Times Spotted 66 | . 10 5 3 . 27 12 9 Peak Tracking Total 4 | . 3 4 1 . 4 4 4 Tactical Retreats 5 | . 1 . . . 1 2 1 Traps | -11 -10 -10 -9 -6 -6 -6 -6 ------- Run | Yrd Mat Sub Scr Fac Gar Fac Low Traps Triggered 6 | . . . . . 5 1 . Indirectly . | . . . . . . . . Trap Hack Attempts . | . . . . . . . . Triggered . | . . . . . . . . Disarmed . | . . . . . . . . Reprogrammed . | . . . . . . . . Reused . | . . . . . . . . Traps Extracted . | . . . . . . . . Installed . | . . . . . . . . Triggered . | . . . . . . . . Machines | -11 -10 -10 -9 -6 -6 -6 -6 ---------- Run | Yrd Mat Sub Scr Fac Gar Fac Low Machines Disabled 3 | . . . . . 2 1 . Max in Single Turn 1 | . . . . . 1 1 . Garrison Relay 2 | . . . . . 2 . . Machines Repaired . | . . . . . . . . Machines Dismantled . | . . . . . . . . Machines Sabotaged . | . . . . . . . . Overloaded Fab Kills . | . . . . . . . . Hacking | -11 -10 -10 -9 -6 -6 -6 -6 --------- Run | Yrd Mat Sub Scr Fac Gar Fac Low Machines Accessed 22 | . 4 1 11 2 1 3 . Terminals 8 | . 4 . . 1 1 2 . Fabricators . | . . . . . . . . Repair Stations . | . . . . . . . . Recycling Units 1 | . . . . . . 1 . Scanalyzers . | . . . . . . . . Garrison Access 1 | . . . . 1 . . . Total Hacks 96 | . 10 3 65 4 1 13 . Successful 78 | . 2 3 65 1 . 7 . Failed 18 | . 8 . . 3 1 6 . Catastrophic 2 | . 1 . . 1 . . . Database Lockouts . | . . . . . . . . Manual 9 | . . 1 . 3 1 4 . Terminals 26 | . 10 . . 3 1 12 . Fabricators . | . . . . . . . . Repair Stations . | . . . . . . . . Recycling Units 1 | . . . . . . 1 . Scanalyzers . | . . . . . . . . Garrison Access 1 | . . . . 1 . . . Terminal Hacks 76 | . 2 3 65 . . 6 . Record 65 | . 1 3 58 . . 3 . Robot Analysis 7 | . . . 7 . . . . Prototype ID Bank 2 | . 1 . . . . 1 . Locate Traps 1 | . . . . . . 1 . Hauler Manifests 1 | . . . . . . 1 . Fabricator Hacks . | . . . . . . . . Repair Station Hacks . | . . . . . . . . Recycling Unit Hacks . | . . . . . . . . Scanalyzer . | . . . . . . . . Garrison Access Hacks 1 | . . . . 1 . . . Unlock Access 1 | . . . . 1 . . . Unauthorized Hacks 1 | . . . . . . 1 . Terminals . | . . . . . . . . Fabricators . | . . . . . . . . Repair Stations . | . . . . . . . . Recycling Units 1 | . . . . . . 1 . Fedlink 1 | . . . . . . 1 . Scanalyzers . | . . . . . . . . Garrison Access . | . . . . . . . . Data Cores Recovered . | . . . . . . . . Used . | . . . . . . . . Hacking Detections 8 | . 4 . . 1 1 2 . Full Trace Events 1 | . . . . . . 1 . Feedback Events . | . . . . . . . . Feedback Blocked . | . . . . . . . . Robot Schematics Acquired . | . . . . . . . . Robots Built . | . . . . . . . . Authchips . | . . . . . . . . Time . | . . . . . . . . Total Robot Build Rating . | . . . . . . . . Part Schematics Acquired . | . . . . . . . . Parts Built . | . . . . . . . . Authchips . | . . . . . . . . Time . | . . . . . . . . Total Part Build Rating . | . . . . . . . . Part Studies Acquired . | . . . . . . . . Parts Repaired . | . . . . . . . . Time . | . . . . . . . . Parts Recycled . | . . . . . . . . Recycled Matter . | . . . . . . . . Retrieved Matter . | . . . . . . . . Retrieved Components . | . . . . . . . . Parts Scanalyzed . | . . . . . . . . Part Schematics Acquired . | . . . . . . . . Parts Damaged . | . . . . . . . . Bothacking | -11 -10 -10 -9 -6 -6 -6 -6 ------------ Run | Yrd Mat Sub Scr Fac Gar Fac Low Used RIF Installer 1 | . . . . . 1 . . Robots Hacked . | . . . . . . . . Non-combat . | . . . . . . . . Combat . | . . . . . . . . Robot Hacks Applied . | . . . . . . . . Relay Couplers Released 7 | . . . . . 7 . . Machine Destruction 7 | . . . . . 7 . . Fabnet Peak Effective % . | . . . . . . . . Robots Rewired . | . . . . . . . . Allies Hacked . | . . . . . . . . Hacks Repelled . | . . . . . . . . Allies | -11 -10 -10 -9 -6 -6 -6 -6 -------- Run | Yrd Mat Sub Scr Fac Gar Fac Low Total Allies . | . . . . . . . . Largest Group . | . . . . . . . . Highest-Rated Group . | . . . . . . . . Highest-Rated Ally . | . . . . . . . . Total Orders . | . . . . . . . . Ally Attacks . | . . . . . . . . Total Damage . | . . . . . . . . Kills . | . . . . . . . . Allies Corrupted . | . . . . . . . . Allies Melted 3 | . . . 3 . . . . Intel | -11 -10 -10 -9 -6 -6 -6 -6 ------- Run | Yrd Mat Sub Scr Fac Gar Fac Low Active Infowar (turns) 434 | 42 392 . . . . . . Seismic 434 | 42 392 . . . . . . Robot Analysis Total 7 | . . . 7 . . . . Derelict Logs Recovered 3 | . . 1 1 . . . 1 Drone Launches . | . . . . . . . . Drone Recoveries . | . . . . . . . . Exploration | -11 -10 -10 -9 -6 -6 -6 -6 ------------- Run | Yrd Mat Sub Scr Fac Gar Fac Low Turns Passed 10253 | 108 638 317 4247 154 2726 927 1136 Spaces Moved 4755 | 52 334 155 2011 88 1309 304 502 Core 38 | 5 . . . . . . 33 Treads 4181 | 47 334 155 2011 88 1309 237 . Legs . | . . . . . . . . Wheels 536 | . . . . . . 67 469 Hover . | . . . . . . . . Flight . | . . . . . . . . Fastest Speed 50 | 50 160 160 160 155 153 200 50 Average Speed 194 | 149 160 160 209 155 176 247 199 Slowest Speed 1200 | 160 160 160 360 155 320 400 1200 Overloaded Moves . | . . . . . . . . Propulsion Burnouts . | . . . . . . . . Robots Hopped . | . . . . . . . . Potential Cave-ins . | . . . . . . . . Cave-ins Triggered . | . . . . . . . . Exploration Rate (%) 40 | 4 59 18 94 4 79 4 65 Regions Visited 7 Branch Regions 3 Pre-discovered Areas 3 | . . 2 . . . . 1 Known Exits Taken 1 | . . . . 1 . . . Unknown Exits Taken 5 | 1 1 1 1 . . 1 . Scrap Searched 6 | . . . 4 . . . 2 Spaces Dug 8 | . . 8 . . . . . Terrain Destroyed 48 | . . 37 . . 3 1 7 Melee . | . . . . . . . . Projectile 10 | . . . . . 2 1 7 AOE 37 | . . 37 . . . . . Terrain Rammed . | . . . . . . . . Walls Destroyed . | . . . . . . . . Machines Disabled . | . . . . . . . . Actions | -11 -10 -10 -9 -6 -6 -6 -6 --------- Run | Yrd Mat Sub Scr Fac Gar Fac Low Total 5387 | 68 403 208 2058 104 1542 417 587 Wait 283 | . 48 35 5 . 90 59 46 Move 4748 | 51 333 154 2010 87 1308 303 502 Hop . | . . . . . . . . Pick Up 51 | 4 4 3 19 5 12 4 . Fast Attach 13 | 7 . . . . 3 1 2 Attach 26 | . . 1 2 8 5 6 4 Detach 6 | . . . 1 . 4 1 . Swap 27 | 1 1 5 8 4 6 2 . Drop 32 | . . 2 13 . 14 2 1 Fire 173 | 5 17 8 . . 94 26 23 Melee 12 | . . . . . . 3 9 Ram 1 | . . . . . . 1 . Kick . | . . . . . . . . Crush 1 | . . . . . . 1 . Escape Stasis 14 | . . . . . 6 8 . Rewire . | . . . . . . . . Trap . | . . . . . . . . Miscellaneous . | . . . . . . . . Route ------- -11/Scrapyard -10/Materials (discovered 3 exits: [*Mat x2] / *Sub) -10/Subcaves -9/Scraptown (discovered 2 exits: *Fac x2) -6/Factory -6/Garrison (discovered 2 exits: *Fac x2) -6/Factory -6/Lower Caves History --------- Turn | Location | Event 5 | -11/Scrapyard | Discovered new exit (range 15) 109 | -11/Scrapyard | Entered Materials 318 | -10/Materials | Build established: Mutant 330 | -10/Materials | Discovered new exit (range 16) 483 | -10/Materials | Discovered new exit (range 9) 533 | -10/Materials | Discovered new exit (range 16) 609 | -10/Materials | Derelicts attacked the area 747 | -10/Materials | Entered Subcaves 748 | -10/Subcaves | Approached by a straggling Scientist 755 | -10/Subcaves | Shifting Twisted Machinery released Spk. Treads 759 | -10/Subcaves | Learned location of Zion (-6) 768 | -10/Subcaves | Shifting Twisted Machinery released Sub. Shrapnel Launcher 870 | -10/Subcaves | Ambushed by Subdweller buried in earth 894 | -10/Subcaves | Met a Zionite searching for "candidates" 946 | -10/Subcaves | Visited Clippyterm 951 | -10/Subcaves | Learned Factory stockpile data 1029 | -10/Subcaves | Shifting Twisted Machinery released Flamer 1061 | -10/Subcaves | Scientist uncovered a shortcut to Scraptown 1064 | -10/Subcaves | Entered Scraptown 1515 | -9/Scraptown | Scanned Subdweller tech in exchange for log data 1520 | -9/Scraptown | Learned Research trap positions 1539 | -9/Scraptown | Discovered new exit (range 11) 1681 | -9/Scraptown | Visited Symbiants 1731 | -9/Scraptown | Visited Cave Peace 1790 | -9/Scraptown | Visited UFD Registry 2434 | -9/Scraptown | Visited Cyclists 2490 | -9/Scraptown | Visited CR-KLE's Repair Center 2501 | -9/Scraptown | CR-KLE repaired 6 parts 2525 | -9/Scraptown | Visited Red Mages 2576 | -9/Scraptown | Visited Assassins FH 2605 | -9/Scraptown | Visited Junk Repository 3253 | -9/Scraptown | Registered with UFD as "Nukewarp" 3355 | -9/Scraptown | Visited Modified Component R&D 3553 | -9/Scraptown | Visited Research Penetration Think Tank 3640 | -9/Scraptown | Visited Chapter 10 3773 | -9/Scraptown | Found Scrap Suit 3776 | -9/Scraptown | Found Scrap Suit 3875 | -9/Scraptown | Discovered new exit (range 5) 3975 | -9/Scraptown | Visited DA-N13 Charitable Foundation 4002 | -9/Scraptown | Found DCF Scrap (28 items) 4111 | -9/Scraptown | Visited Infowarlord's Domain 4585 | -9/Scraptown | Visited Analyses Database 4642 | -9/Scraptown | Visited Sword Containment 4700 | -9/Scraptown | Visited Abandonware Association 4727 | -9/Scraptown | Learned abandonware demo "REVENGE.EXE" 4727 | -9/Scraptown | Learned abandonware demo "MELTYB.EXE" 5030 | -9/Scraptown | Met Optimus 5030 | -9/Scraptown | Accepted into 0bPrime 5263 | -9/Scraptown | Civil war broke out across Scraptown 5307 | -9/Scraptown | Lost 7 allies 5311 | -9/Scraptown | Entered Factory 5311 | -6/Factory | Evolved 8 slots: Power x1, Propulsion x2, Utility x3, Weapon x2 5464 | -6/Factory | Identified exit to Garrison 5465 | -6/Factory | Entered Garrison 5568 | -6/Garrison | Installed Relay Interface Framework 5616 | -6/Garrison | Build established: Scrapper 5668 | -6/Garrison | Garrison Relay disabled 5957 | -6/Garrison | Triggered checkpoint 6172 | -6/Garrison | Triggered checkpoint 6224 | -6/Garrison | Build established: Scavenger-Tank 6371 | -6/Garrison | Triggered checkpoint 6579 | -6/Garrison | Discovered new exit (range 11) 7142 | -6/Garrison | Triggered checkpoint 7388 | -6/Garrison | Triggered checkpoint 7432 | -6/Garrison | Discovered new exit (range 11) 7937 | -6/Garrison | Triggered checkpoint 7965 | -6/Garrison | Triggered checkpoint 7990 | -6/Garrison | Lost 3 parts (1p2n) 8191 | -6/Garrison | Entered Factory 8508 | -6/Factory | Loaded intel: 8 recycling unit locations 8841 | -6/Factory | Lost 5 parts (1p1n2u1w) 8891 | -6/Factory | First assault squad dispatched 9088 | -6/Factory | Discovered new exit (range 15) 9118 | -6/Factory | Entered Lower Caves 9278 | -6/Lower Caves | Core integrity fell below 50% 10120 | -6/Lower Caves | Ambushed by wild Derelicts 10200 | -6/Lower Caves | Core integrity fell below 20% 10241 | -6/Lower Caves | Lost 8 parts (2p2u4w) 10254 | -6/Lower Caves | Destroyed by 3D-S5Z(l) with Ripper Last Messages --------------- 10167_ UB-5CP(l) destroyed. 10170_ Acquired Rnf. Deuterium Engine. 10172_ Scrap Suit cannibalized Imp. Deuterium Engine to repair Rnf. Deuterium Engine. 10179_ 3D-S5Z(l) heat short circuits Imp. Deuterium Engine. 10179_ 3D-S5Z(l) overheating. 10180_ Rnf. Deuterium Engine destroyed. 10185_ Ovr. Beamcaster destroyed. 10187_ VA-4EJ(l) destroyed. 10188_ Acquired 25 matter. 10201_ Scrap Suit secures Ovr. Quantum Rifle. 10205_ Ovr. Quantum Rifle severed. 10206_ Scrap Suit secures Ovr. Quantum Rifle. 10210_ Scrap Suit destroyed. 10215_ Ovr. Beamcaster severed. 10216_ Dropped Hcp. Storage Unit. 10231_ Ovr. Quantum Rifle severed. 10250_ Acquired Ovr. Quantum Rifle. [Achievement: Hydra] Map ----- +----------------------------------------------------+ | ???####????# ### ##??????????????????????? | | ??## ##???# ## ##?????????????????????? | | ??# #????# # #?????????????????????? | | ??# ##???# # ##?????????????????????? | | ??# #??## # # ###?#????????????????????? | | ??# #### ### ##?? #????????????????????? | | #?# # ## ### #????????????????????? | | #?# # # #????????????????????? | | #?# # # #????????????????????? | | #### # #????????????????????? | | ### #????????????????????? | | ### ##?????????####???????? | | ##?# ## #?????????## ##??????? | | ##??# ### #?????###?# ???????? | | #??## #####?## ## ?? ## ???????? | | #??# ##?# ???# ##?# #???????? | | ##?# ##??? #??# ##??? ######? #???????? | | #?#% ###### ######???? ##??????? ###??#### | | ##?#! ## #??###??? ##??????????# ##?# | | ##?# ####!#???#######???????# ### | | ### ###### =##!*###??# ###????# | | ## #????## =%![!!!##??# ##??# | | ## #?????# #!=%=!##;#### #### | | ### ##########!*/=! ;#?# | | #?# ## % % ##?# | | ### "### l@ #?# ## | | ####### %#### #?## #?## #### | | #?##### #?# #??##???# ###??? | | ## ##?# #?## ##?????## ##????? | | ## #??# ######### #?????# #?????? | | #??# #????## #????## ##?????? | | ##### ##??## #???## ##??????? | | ## ##### #### ##### ####???????? | | ###### ## ## ##??????????? | | ####??## #???????????? | | ####### ##???????????? | | # ##### ### #????????????? | | #######???# #?## #???????????? | | ## ### ##???????? #??# #???????????? | | ## ##?# ##?????? ??# #???????????? | | ##### ##?## ##???? ?? ???????????? | | ????###??# #### ##??? ?? ??????????? | | ?????????# #??## ##?# ?? ?????????? | | ????????## ###?## #?## ? #?????????? | | #???????# #### #??######? ##?????????? | | ##??????# ## #?????????? ##??????????? | | ###????# ##### #???????????#????????????? | | #????##????## ##????????????????????????? | | # ##???????????#### ###?????????????????????????? | | ###???????????????####???????????????????????????? | +----------------------------------------------------+ Best States ------------- Heat Dissipation 56 Energy Generation 34 Energy Capacity 370 Matter Stores 300 Matter Capacity 300 Sight Range 16 Terrain Scan Density 10 Armor Coverage 225 Core Shielding 30 Evasion (%) 40 Recoil Reduction 8 Salvage Targeting 4 Item Schematics ----------------- None Robot Schematics ------------------ None Fabricated ------------ Nothing Repaired ---------- Nothing Studied --------- None Alien Tech Used ----------------- None Achievements -------------- Brute Force Civilization 2243 Hydra Join The Dark Side Link The Feds Nice Directions, Buddy Uncivil War Well Done Challenges ------------ None Game ------ Seed GrapheneBiometalPurifier Manual? 0 Play Time 01:30:18 Cumulative 20.7 hours Start 2025.11.25 @ 16:56:30 End 2025.11.25 @ 18:28:38 Sessions 1 Manual Loads 0 Difficulty Rogue Special Mode None Game No. 26 Rogue 26 Adventurer 0 Explorer 0 Win Type - Total 0 Types 0/0/0/0/0/0/0/0/0/0 Lore% 18 Gallery% 21 Achievement% 16 Wizard Run 0 Options --------- Layout 1 ASCII 0 Keyboard 0 Movement Numpad Keybinds 0 Fullscreen 0 Font 24/Proggy Map View 50x35 Zoom Use 0% Tactical HUD 1 Map Filters NONE Filters NONE Steam 1 RUN: 43631dba-9353-41e0-b9b0-59244525bcf7